bitfinex/quotes_SOLUSD_20260314
["timestamp","ask_amount","ask_price","bid_price","bid_amount"]
[1773457412262,0.60012958,88.292,88.261,0.56399073]
[1773457414448,0.60012958,88.279,88.251,0.56399073]
[1773457414765,0.60012958,88.289,88.251,0.56399073]
[1773457417472,0.60012958,88.287,88.253,0.56399073]
[1773457419475,0.60012958,88.287,88.244,0.56399073]
[1773457419660,0.60012958,88.269,88.244,0.56399073]
[1773457420582,0.60012958,88.269,88.246,0.56399073]
[1773457423079,11.329134,88.268,88.238,0.56399073]
[1773457423290,3.64089275,88.26,88.224,0.56399073]
[1773457423477,3.64089275,88.26,88.227,0.56399073]
[1773457424987,0.60012958,88.257,88.229,0.56399073]
[1773457427387,0.60012958,88.257,88.231,0.59200181]
[1773457427783,0.57934235,88.268,88.241,0.59200181]
[1773457429264,0.57934235,88.266,88.243,0.59200181]
[1773457431267,0.59073161,88.264,88.238,11.90436903]
[1773457431469,0.59073161,88.264,88.239,0.57138325]
[1773457432490,0.59073161,88.264,88.241,0.57138325]
[1773457434485,0.59073161,88.264,88.243,0.57138325]
[1773457436585,0.59073161,88.264,88.244,11.33221522]
[1773457436891,11.3295533,88.265,88.245,0.57138325]
[1773457437394,0.59073161,88.265,88.245,0.57138325]
[1773457438181,11.91911872,88.274,88.251,0.57138325]
[1773457438376,0.59073161,88.273,88.251,0.57138325]
[1773457439273,0.59073161,88.273,88.253,0.57138325]
[1773457447102,0.59073161,88.259,88.234,11.90479997]
[1773457447477,0.59073161,88.259,88.235,0.57138325]
[1773457450611,28.31497923,88.293,88.25,3.64019092]
[1773457450803,0.59073161,88.291,88.261,0.57138325]
[1773457452386,0.59073161,88.291,88.262,0.57138325]
[1773457452586,0.59073161,88.289,88.262,0.57138325]
[1773457452996,11.91653902,88.294,88.262,0.57138325]
[1773457453183,0.59073161,88.294,88.262,0.57138325]
[1773457453379,11.91599415,88.299,88.271,0.57138325]
[1773457454586,11.91599415,88.299,88.273,0.57138325]
[1773457455405,0.59073161,88.298,88.273,0.57138325]
[1773457455908,0.59073161,88.298,88.275,0.57138325]
[1773457459818,0.59073161,88.298,88.277,0.57138325]
[1773457461498,0.59128828,88.303,88.277,0.57138325]
[1773457462803,0.69128828,88.32,88.291,0.60242333]
[1773457463131,0.69128828,88.32,88.29,3.64019092]
[1773457463132,0.59128828,88.319,88.301,0.60242333]
[1773457463431,0.59128828,88.319,88.291,0.60242333]
[1773457467920,11.32272017,88.318,88.291,0.60242333]
[1773457468123,0.59128828,88.317,88.291,0.60242333]
[1773457471430,11.32297658,88.316,88.291,0.60242333]
[1773457471602,0.59128828,88.315,88.291,0.60242333]
[1773457471807,0.59128828,88.315,88.293,0.60242333]
[1773457474426,11.323233,88.314,88.293,0.60242333]
[1773457474630,0.59128828,88.313,88.293,0.60242333]
[1773457476830,0.59128828,88.311,88.293,0.60242333]
[1773457477235,0.59128828,88.311,88.295,0.60242333]
[1773457477931,11.32276335,88.318,88.295,0.60242333]
[1773457478120,0.59128828,88.317,88.295,0.60242333]
[1773457478530,11.32276335,88.318,88.295,0.60242333]
[1773457478740,0.59128828,88.317,88.295,0.60242333]
[1773457481126,0.59128828,88.315,88.29,0.60242333]
[1773457484637,0.59128828,88.313,88.29,0.60242333]
[1773457487734,0.59799809,88.311,88.29,0.60242333]
[1773457489546,0.69799809,88.32,88.292,0.5945213]
[1773457492048,0.69799809,88.32,88.293,11.32592617]
[1773457492225,0.1,88.32,88.294,0.59385287]
[1773457492428,0.1,88.32,88.301,0.59385287]
[1773457493437,0.1,88.32,88.303,0.59385287]
[1773457494753,0.1,88.32,88.305,0.59385287]
[1773457502065,0.1,88.32,88.307,0.59385287]
[1773457503768,0.54256162,88.319,88.295,0.59385287]
[1773457503947,11.32272017,88.318,88.294,0.42817976]
[1773457504148,0.54256162,88.317,88.294,0.42817976]
[1773457505154,0.54256162,88.315,88.291,18.54607475]
[1773457505355,0.54256162,88.315,88.291,19.13992762]
[1773457505965,0.54256162,88.315,88.292,0.59385287]
[1773457506368,0.54256162,88.319,88.292,0.59385287]
[1773457507268,0.54256162,88.319,88.293,11.32592617]
[1773457507466,0.54256162,88.319,88.294,0.59385287]
[1773457508571,0.54256162,88.319,88.295,11.32566963]
[1773457508760,0.54256162,88.319,88.296,0.59385287]
[1773457509067,0.54256162,88.319,88.291,35.53545684]
[1773457509068,0.54256162,88.317,88.291,7.81385287]
[1773457509247,0.54256162,88.317,88.292,0.59385287]
[1773457509452,0.54256162,88.317,88.293,0.59385287]
[1773457509854,0.54256162,88.318,88.293,0.59385287]
[1773457512857,0.54256162,88.316,88.294,11.91965077]
[1773457513063,0.54256162,88.316,88.295,0.59385287]
[1773457525864,0.54256162,88.316,88.294,11.3257979]
[1773457526063,0.54256162,88.316,88.3,3.63557766]
[1773457526485,0.54256162,88.316,88.298,0.54308418]
[1773457527083,0.1,88.32,88.302,0.54308418]
[1773457527290,0.1,88.32,88.301,11.32490005]
[1773457527291,0.1,88.32,88.311,0.54308418]
[1773457527579,0.5688178,88.339,88.321,0.54308418]
[1773457528282,0.5688178,88.339,88.322,11.32220737]
[1773457528869,0.5688178,88.339,88.322,11.86529155]
[1773457530190,0.5688178,88.339,88.322,0.54308418]
[1773457530392,0.1,88.36,88.332,0.54308418]
[1773457530686,0.5688178,88.359,88.331,0.54308418]
[1773457531786,0.5688178,88.349,88.328,11.32143543]
[1773457532989,0.5688178,88.349,88.329,0.54308418]
[1773457535893,0.5688178,88.349,88.33,11.32118193]
[1773457536076,0.5688178,88.354,88.331,0.54308418]
[1773457536796,0.1,88.36,88.341,0.54308418]
[1773457536999,0.6688178,88.36,88.341,0.54308418]
[1773457541583,0.6688178,88.36,88.337,11.32019892]
[1773457541584,0.5688178,88.359,88.337,11.32019892]
[1773457541786,0.5688178,88.359,88.337,11.8632831]
[1773457545203,0.5688178,88.357,88.337,11.8632831]
[1773457545407,0.5688178,88.357,88.337,0.54308418]
[1773457545805,0.5688178,88.357,88.333,11.32075977]
[1773457546012,0.5688178,88.355,88.324,0.54308418]
[1773457546197,11.31785051,88.356,88.301,0.54308418]
[1773457546198,3.63557766,88.33,88.301,0.54308418]
[1773457546397,0.54348103,88.329,88.301,0.54308418]
[1773457547105,7.22,88.343,88.321,0.57910039]
[1773457547890,7.22,88.343,88.323,0.57910039]
[1773457549593,7.22,88.343,88.325,0.57910039]
[1773457549811,0.54348103,88.35,88.325,0.57910039]
[1773457552512,0.54348103,88.35,88.326,11.32169463]
[1773457552813,0.54348103,88.35,88.327,0.57577256]
[1773457553013,0.55594847,88.348,88.327,0.57577256]
[1773457557999,11.31900347,88.347,88.327,0.57577256]
[1773457558315,0.55594847,88.346,88.327,0.57577256]
[1773457563919,0.55594847,88.359,88.327,0.57577256]
[1773457564111,0.55594847,88.358,88.331,0.57577256]
[1773457565220,0.55594847,88.356,88.331,0.57577256]
[1773457566626,0.1,88.36,88.341,0.57577256]
[1773457566842,0.55594847,88.359,88.341,0.57577256]
[1773457568112,0.1,88.36,88.341,0.57577256]
[1773457569016,0.1,88.36,88.311,7.22]
[1773457569017,0.1,88.37,88.351,0.57577256]
[1773457571015,0.65594847,88.37,88.351,0.57577256]
[1773457571216,0.65594847,88.37,88.34,31.93236332]
[1773457571217,0.55594847,88.369,88.342,0.57577256]
[1773457572820,0.1,88.37,88.342,0.57577256]
[1773457573134,0.65594847,88.37,88.344,0.57577256]
[1773457573737,0.1,88.37,88.344,0.57577256]
[1773457573948,0.1,88.37,88.351,0.57577256]
[1773457575140,0.1,88.37,88.352,11.31836291]
[1773457575332,0.1,88.37,88.353,0.57577256]
[1773457575734,13.22121285,88.372,88.353,0.57577256]
[1773457575929,0.55594847,88.406,88.361,0.18881793]
[1773457576120,3.63269159,88.4,88.361,0.18881793]
[1773457576328,0.55594847,88.399,88.361,0.18881793]
[1773457576629,0.55594847,88.399,88.371,0.18962681]
[1773457577334,0.55594847,88.398,88.372,11.50622817]
[1773457578053,0.55594847,88.389,88.354,0.19042679]
[1773457578222,0.55594847,88.389,88.353,0.59389896]
[1773457578223,0.55594847,88.389,88.358,0.19121741]
[1773457578646,0.55594847,88.406,88.381,0.19121741]
[1773457579342,0.55594847,88.406,88.382,11.31452105]
[1773457580246,0.55594847,88.406,88.382,11.50728412]
[1773457580824,0.55594847,88.406,88.384,11.31426502]
[1773457581120,0.55594847,88.406,88.357,7.36216157]
[1773457581121,0.57378165,88.399,88.373,11.31566427]
[1773457581320,0.57378165,88.399,88.374,0.19428671]
[1773457585053,0.57378165,88.399,88.376,0.19649101]
[1773457586949,0.57378165,88.399,88.377,11.31516118]
[1773457587153,0.57378165,88.399,88.378,0.19792251]
[1773457588649,0.57378165,88.409,88.381,0.1993197]
[1773457588828,0.67378165,88.41,88.381,0.1993197]
[1773457589034,0.57378165,88.425,88.401,0.10008124]
[1773457589346,0.57378165,88.419,88.392,0.10008124]
[1773457589948,0.57378165,88.409,88.387,11.31387868]
[1773457590145,0.57378165,88.409,88.377,0.10008124]
[1773457591656,0.57378165,88.407,88.377,0.10158736]
[1773457594940,0.57378165,88.407,88.38,3.73646929]
[1773457595558,0.57378165,88.405,88.38,3.73646929]
[1773457596157,0.57378165,88.403,88.376,0.10519897]
[1773457597962,0.57378165,88.401,88.371,11.421822]
[1773457598258,0.57378165,88.399,88.371,11.421822]
[1773457599467,0.57378165,88.399,88.372,0.10725093]
[1773457603867,0.57378165,88.406,88.381,0.10989479]
[1773457604361,0.57378165,88.406,88.372,0.11053356]
[1773457610265,0.57378165,88.406,88.381,0.11481372]
[1773457612055,0.57378165,88.406,88.382,0.11654468]
[1773457613161,0.57378165,88.406,88.371,0.11710322]
[1773457614154,0.57378165,88.406,88.381,0.11766011]
[1773457615664,0.57378165,88.406,88.382,0.11820963]
[1773457616957,0.60499088,88.417,88.382,0.11820963]
[1773457617154,0.60499088,88.429,88.41,3.74710519]
[1773457617574,0.60499088,88.435,88.411,0.11928555]
[1773457618055,0.1514217,88.431,88.42,3.62781964]
[1773457618873,0.1514217,88.431,88.41,3.62781964]
[1773457619074,0.1514217,88.431,88.411,11.31080974]
[1773457619483,0.76670644,88.431,88.411,11.31080974]
[1773457620164,0.76670644,88.431,88.388,0.74529066]
[1773457620165,3.62781964,88.42,88.388,0.74529066]
[1773457620369,3.62781964,88.42,88.389,11.31362499]
[1773457620370,0.61528474,88.419,88.389,11.31362499]
[1773457620681,0.61528474,88.419,88.39,3.62781964]
[1773457621267,0.61528474,88.417,88.391,11.313369]
[1773457622085,0.61528474,88.424,88.4,3.62781964]
[1773457622269,0.1514217,88.431,88.41,3.62781964]
[1773457623288,0.76670644,88.431,88.41,3.62781964]
[1773457623484,0.76670644,88.431,88.41,11.31081194]
[1773457624282,0.61528474,88.429,88.4,3.62781964]
[1773457624489,0.61528474,88.429,88.401,11.31208922]
[1773457624871,14.93619914,88.43,88.382,11.31452105]
[1773457624872,0.61528474,88.419,88.382,11.31452105]
[1773457625377,0.61528474,88.419,88.39,3.62781964]
[1773457625689,0.61528474,88.419,88.391,11.313369]
[1773457626285,0.61528474,88.429,88.4,3.62781964]
[1773457627390,0.61528474,88.429,88.401,11.31208922]
[1773457627887,0.61528474,88.427,88.401,11.31208922]
[1773457629994,0.61528474,88.425,88.401,11.31208922]
[1773457633000,0.61528474,88.425,88.4,3.62781964]
[1773457633298,0.61528474,88.423,88.4,3.62781964]
[1773457633800,0.61528474,88.423,88.4,14.9399667]
[1773457634394,0.61528474,88.423,88.4,11.31214706]
[1773457634994,0.61528474,88.423,88.4,3.62781964]
[1773457637405,0.61528474,88.421,88.401,11.31208922]
[1773457646918,0.1514217,88.431,88.41,3.62781964]
[1773457647093,10.0,117.36,88.431,0.47830711]
[1773457647094,11.30096736,88.488,88.431,0.47830711]
[1773457647410,11.30096736,88.488,88.402,1.13119612]
[1773457647411,39.55338576,88.488,88.448,0.47830711]
[1773457647606,3.62781964,88.48,88.448,0.47830711]
[1773457647802,39.55338576,88.488,88.449,11.78425743]
[1773457648106,3.62781964,88.48,88.449,0.47830711]
[1773457648818,3.62781964,88.48,88.449,11.78425743]
[1773457649000,0.61818866,88.479,88.449,0.47830711]
[1773457649200,0.61818866,88.485,88.461,0.47968506]
[1773457650107,0.61818866,88.483,88.455,0.47968506]
[1773457651005,0.1,88.49,88.435,0.48035406]
[1773457651006,0.61818866,88.469,88.435,0.48035406]
[1773457651412,0.61818866,88.479,88.441,0.4810332]
[1773457651806,11.30224462,88.478,88.442,11.30684516]
[1773457652012,0.61818866,88.477,88.443,0.4810332]
[1773457655217,0.61818866,88.475,88.445,0.48364299]
[1773457658016,0.61818866,88.473,88.447,0.48490101]
[1773457659522,0.61818866,88.473,88.446,11.3063338]
[1773457659523,0.61818866,88.473,88.451,0.48613814]
[1773457660621,0.61818866,88.473,88.452,11.30556686]
[1773457662124,0.61818866,88.473,88.452,11.79348944]
[1773457662432,0.61818866,88.485,88.453,0.48792258]
[1773457664822,0.61818866,88.483,88.455,0.48908484]
[1773457665323,0.61818866,88.483,88.46,3.62781964]
[1773457665507,0.61818866,88.483,88.455,0.48908484]
[1773457665707,10.91966689,88.484,88.455,0.48908484]
[1773457667923,0.58433036,88.483,88.461,0.59871463]
[1773457668114,0.1,88.49,88.456,11.90377025]
[1773457668115,0.58433036,88.481,88.456,11.90377025]
[1773457668306,0.68433036,88.49,88.47,3.62781964]
[1773457668506,0.68433036,88.49,88.471,0.59871463]
[1773457669409,0.58433036,88.488,88.453,0.59871463]
[1773457670231,0.58433036,88.479,88.446,11.90492338]
[1773457670625,0.58433036,88.479,88.447,0.59871463]
[1773457670925,0.58433036,88.479,88.446,11.30620875]
[1773457671227,0.58433036,88.479,88.447,0.58818914]
[1773457671421,11.30224462,88.478,88.448,11.30607814]
[1773457671630,0.58809906,88.477,88.449,0.58818914]
[1773457671818,0.58809906,88.483,88.451,0.58818914]
[1773457672533,11.88900158,88.489,88.461,0.58818914]
[1773457673422,0.58809906,88.488,88.461,0.58818914]
[1773457673622,0.58809906,88.488,88.463,0.58818914]
[1773457674720,0.1,88.49,88.471,0.58818914]
[1773457675336,0.58809906,88.489,88.458,0.58818914]
[1773457675523,0.58809906,88.488,88.457,11.3048854]
[1773457675721,0.58809906,88.486,88.457,11.89307454]
[1773457676132,0.58809906,88.486,88.458,0.58818914]
[1773457677936,0.58809906,88.486,88.433,0.72921842]
[1773457677937,0.58809906,88.479,88.447,11.30616722]
[1773457678318,0.58809906,88.479,88.447,11.89435636]
[1773457679539,0.58809906,88.477,88.447,11.89435636]
[1773457680136,0.58809906,88.477,88.448,0.58818914]
[1773457681636,3.72231532,88.49,88.447,11.30616722]
[1773457681637,0.1,88.49,88.471,0.58818914]
[1773457682548,0.58809906,88.512,88.481,0.58818914]
[1773457683749,0.58809906,88.51,88.483,0.58818914]
[1773457683929,0.58809906,88.51,88.483,0.36216914]
[1773457684949,0.58809906,88.51,88.49,3.62231532]
[1773457685848,0.58809906,88.51,88.491,11.30058424]
[1773457686551,0.58809906,88.508,88.475,0.58818914]
[1773457687931,11.29828605,88.509,88.443,0.58818914]
[1773457687932,0.58809906,88.487,88.443,0.58818914]
[1773457688734,0.58809906,88.479,88.443,0.58818914]
[1773457690041,0.58809906,88.477,88.445,0.58818914]
[1773457691161,0.58809906,88.475,88.446,11.89452294]
[1773457691757,0.58809906,88.475,88.447,0.58818914]
[1773457691937,9.39059917,88.476,88.447,0.58818914]
[1773457693954,0.58809906,88.473,88.447,0.58818914]
[1773457694331,0.58809906,88.473,88.443,0.58818914]
[1773457698957,0.58809906,88.471,88.443,0.58818914]
[1773457701662,0.61577783,88.482,88.451,0.61557783]
[1773457705244,3.62231532,88.49,88.453,0.61557783]
[1773457705245,0.61577783,88.48,88.453,0.61557783]
[1773457706771,0.61577783,88.478,88.455,0.61557783]
[1773457707673,3.62231532,88.47,88.436,0.61557783]
[1773457707971,0.61577783,88.469,88.436,0.61557783]
[1773457708269,0.61577783,88.469,88.441,0.61557783]
[1773457708758,0.61577783,88.467,88.443,0.61557783]
[1773457711774,28.25529221,88.479,88.443,0.61557783]
[1773457711775,0.61577783,88.465,88.443,0.61557783]
[1773457712858,0.61577783,88.465,88.444,11.30658948]
[1773457713084,0.61577783,88.465,88.445,0.61557783]
[1773457716670,0.61577783,88.465,88.446,11.3063338]
[1773457716877,0.61577783,88.463,88.445,0.61557783]
[1773457721489,0.61577783,88.467,88.445,0.61557783]
[1773457722488,0.61577783,88.467,88.447,0.61557783]
[1773457724188,0.61577783,88.465,88.447,0.61557783]
[1773457728990,0.61577783,88.465,88.449,0.61118549]
[1773457734790,0.62967526,88.469,88.449,0.61118549]
[1773457740599,0.62967526,88.467,88.449,0.61118549]
[1773457741501,0.62967526,88.467,88.439,11.96541096]
[1773457741698,0.62967526,88.467,88.44,0.65825011]
[1773457742005,0.62967526,88.467,88.441,0.65825011]
[1773457742592,0.62967526,88.477,88.451,0.65825011]
[1773457743206,0.62967526,88.502,88.471,0.65825011]
[1773457743386,0.62967526,88.507,88.481,0.65825011]
[1773457743987,0.62967526,88.489,88.45,3.62208618]
[1773457744502,0.62967526,88.489,88.451,0.65825011]
[1773457744705,0.62967526,88.487,88.453,0.65825011]
[1773457745594,0.62967526,88.487,88.461,0.65825011]
[1773457748511,0.62967526,88.485,88.463,0.65825011]
[1773457750808,0.62967526,88.485,88.465,0.65825011]
[1773457751010,11.93113688,88.485,88.465,0.65825011]
[1773457751591,0.62967526,88.484,88.465,0.65825011]
[1773457751912,0.62967526,88.495,88.465,0.65825011]
[1773457752605,0.62967526,88.494,88.467,0.65825011]
[1773457753293,0.62967526,88.494,88.46,14.92655931]
[1773457753600,0.62967526,88.494,88.461,0.65825011]
[1773457754592,0.62967526,88.492,88.462,11.30428884]
[1773457754792,0.62967526,88.492,88.462,11.96253895]
[1773457755609,11.30058424,88.491,88.462,11.96253895]
[1773457755813,0.62967526,88.49,88.462,11.96253895]
[1773457756811,0.62967526,88.488,88.462,11.30428884]
[1773457757114,0.62967526,88.488,88.463,0.65825011]
[1773457759712,0.62967526,88.486,88.463,0.65825011]
[1773457759895,0.62967526,88.486,88.456,0.65825011]
[1773457760415,0.62967526,88.486,88.452,0.65825011]
[1773457761811,0.63142143,88.484,88.452,0.65825011]
[1773457762719,0.63142143,88.482,88.452,0.65825011]
[1773457767218,0.63142143,88.48,88.452,0.65825011]
[1773457768121,11.30211688,88.479,88.452,0.65825011]
[1773457768419,0.63142143,88.478,88.452,0.65825011]
[1773457771117,11.30237236,88.477,88.452,0.65825011]
[1773457771326,11.93379379,88.477,88.452,0.65825011]
[1773457772021,0.63142143,88.476,88.452,0.65825011]
[1773457772201,0.63142143,88.476,88.454,0.65992788]
[1773457774022,0.63142143,88.474,88.454,0.65992788]
[1773457774512,11.30262786,88.475,88.454,0.65992788]
[1773457775116,0.63142143,88.474,88.454,0.65992788]
[1773457776413,0.63142143,88.472,88.454,0.65992788]
[1773457776615,0.63142143,88.472,88.45,0.65992788]
[1773457776933,0.63142143,88.472,88.451,0.65992788]
[1773457778632,0.63142143,88.47,88.451,0.65992788]
[1773457781735,0.63142143,88.488,88.453,0.65992788]
[1773457782033,103.4,88.493,88.461,0.65992788]
[1773457782034,114.70034271,88.493,88.461,0.65992788]
[1773457782218,0.63142143,88.504,88.471,0.65992788]
[1773457782420,0.63142143,88.504,88.481,0.65992788]
[1773457782619,11.29860789,88.507,88.481,0.65992788]
[1773457783533,11.29860789,88.507,88.48,3.62208618]
[1773457783534,11.29860789,88.507,88.483,0.65992788]
[1773457784421,11.93002932,88.507,88.483,0.65992788]
[1773457785930,0.63142143,88.507,88.484,11.30147823]
[1773457786145,0.63142143,88.507,88.485,0.65992788]
[1773457787130,11.29818785,88.51,88.485,0.65992788]
[1773457787329,0.66126477,88.509,88.485,0.65992788]
[1773457788616,124.24695466,88.548,88.5,3.62208618]
[1773457788617,0.66126477,88.532,88.5,3.62208618]
[1773457788814,0.66126477,88.532,88.501,0.64625155]
[1773457790123,0.66126477,88.529,88.501,0.64625155]
[1773457793726,0.6518625,88.527,88.501,0.64625155]
[1773457797550,0.6518625,88.525,88.501,0.64625155]
[1773457798736,11.2963716,88.524,88.501,0.64625155]
[1773457799044,0.6518625,88.523,88.501,0.64625155]
[1773457800932,0.6518625,88.521,88.501,0.64625155]
[1773457802037,0.6518625,88.521,88.47,7.2]
[1773457802038,0.6518625,88.519,88.48,3.61827957]
[1773457802238,0.6518625,88.509,88.47,3.61827957]
[1773457802548,0.6518625,88.509,88.48,3.61827957]
[1773457803944,0.6518625,88.507,88.482,0.65170868]
[1773457805837,0.6518625,88.505,88.482,0.65170868]
[1773457807132,11.29892434,88.504,88.482,0.65170868]
[1773457807330,0.6518625,88.503,88.482,0.65170868]
[1773457809449,7.2,88.516,88.47,4.26998825]
[1773457809450,0.6518625,88.501,88.47,4.26998825]
[1773457809650,39.54712886,88.502,88.47,0.65170868]
[1773457809651,3.61827957,88.5,88.47,0.65170868]
[1773457809835,0.6518625,88.499,88.47,0.65170868]
[1773457810156,0.6518625,88.499,88.461,0.65170868]
[1773457810337,0.6518625,88.499,88.462,0.65170868]
[1773457812554,0.6518625,88.489,88.457,0.65170868]
[1773457813955,0.6518625,88.479,88.445,0.65170868]
[1773457814456,39.55785618,88.478,88.445,0.65170868]
[1773457814647,0.6518625,88.469,88.445,0.65170868]
[1773457817165,0.6518625,88.467,88.447,0.65170868]
[1773457822255,11.30377772,88.466,88.447,0.65170868]
[1773457822456,0.63899746,88.465,88.447,0.65170868]
[1773457823772,0.63899746,88.463,88.447,0.65170868]
[1773457835876,0.63899746,88.467,88.449,0.59995939]
[1773457836084,0.63899746,88.467,88.45,3.61827957]
[1773457836275,0.63899746,88.467,88.448,0.59995939]
[1773457837476,0.63899746,88.478,88.445,0.59995939]
[1773457837984,0.63899746,88.476,88.445,0.59995939]
[1773457839688,0.63899746,88.474,88.441,0.59995939]
[1773457839888,39.55919751,88.475,88.431,0.59995939]
[1773457839889,0.63899746,88.459,88.431,0.59995939]
[1773457840392,0.63899746,88.459,88.403,7.2]
[1773457840393,0.63899746,88.439,88.4,3.61827957]
[1773457840568,0.63899746,88.439,88.401,0.59995939]
[1773457841479,0.63899746,88.437,88.401,0.59995939]
[1773457841798,0.63899746,88.437,88.403,0.59995939]
[1773457841967,0.63899746,88.429,88.398,0.59995939]
[1773457842171,0.63899746,88.419,88.39,0.2]
[1773457842683,0.63899746,88.419,88.392,0.59995939]
[1773457845794,0.63899746,88.417,88.392,0.59995939]
[1773457849383,0.65574277,88.415,88.392,0.59995939]
[1773457850680,0.65574277,88.413,88.392,0.59995939]
[1773457851686,0.62536497,88.411,88.392,0.59995939]
[1773457852002,0.62536497,88.424,88.401,0.6130053]
[1773457852175,0.62536497,88.423,88.401,0.6130053]
[1773457852872,0.62536497,88.423,88.396,0.6130053]
[1773457853475,0.62536497,88.419,88.391,0.6130053]
[1773457853699,11.30991427,88.418,88.391,11.9263743]
[1773457853904,0.62536497,88.417,88.392,0.6130053]
[1773457856899,0.62536497,88.417,88.393,11.31311302]
[1773457857198,0.62536497,88.417,88.394,0.6130053]
[1773457857875,0.62536497,88.437,88.401,0.6130053]
[1773457858077,0.62536497,88.435,88.401,0.6130053]
[1773457859009,0.62536497,88.429,88.401,0.6130053]
[1773457859973,0.62536497,88.429,88.396,0.6130053]
[1773457860589,11.30786801,88.434,88.39,15.1405956]
[1773457860590,0.62536497,88.419,88.39,15.1405956]
[1773457860980,0.62536497,88.417,88.39,0.2]
[1773457861186,0.62536497,88.417,88.391,11.313369]
[1773457861384,0.62536497,88.417,88.392,0.6130053]
[1773457863483,0.62536497,88.417,88.394,0.6130053]
[1773457865900,0.62536497,88.415,88.394,0.6130053]
[1773457868211,0.62536497,88.415,88.396,0.6130053]
[1773457869612,0.62536497,88.415,88.397,11.3126011]
[1773457870515,0.62536497,88.415,88.398,0.6130053]
[1773457871908,0.62536497,88.426,88.4,4.24016269]
[1773457872102,0.62536497,88.426,88.4,0.6130053]
[1773457872301,0.62536497,88.426,88.399,11.31234516]
[1773457873202,0.62536497,88.424,88.398,0.6130053]
[1773457875390,0.62536497,88.422,88.398,0.6130053]
[1773457876514,0.62536497,88.42,88.398,0.6130053]
[1773457877016,11.30908102,88.425,88.399,0.6130053]
[1773457877318,11.93444599,88.425,88.399,0.6130053]
[1773457877619,0.62536497,88.424,88.399,0.6130053]
[1773457879617,0.62536497,88.424,88.4,14.93937458]
[1773457879922,0.62536497,88.422,88.401,0.6130053]
[1773457880806,0.62536497,88.422,88.402,11.92496656]
[1773457882924,0.63724859,88.42,88.391,0.63363337]
[1773457884509,0.63724859,88.419,88.395,0.63363337]
[1773457885410,0.63724859,88.419,88.397,0.63363337]
[1773457885602,11.30991427,88.418,88.397,0.63363337]
[1773457885806,0.63724859,88.417,88.397,0.63363337]
[1773457887125,0.63724859,88.417,88.399,0.63363337]
[1773457888233,0.63724859,88.417,88.401,0.63363337]
[1773457890637,0.63724859,88.417,88.39,3.82715739]
[1773457890638,0.63724859,88.415,88.396,0.63363337]
[1773457900051,0.63724859,88.419,88.396,0.63363337]
[1773457901052,0.63724859,88.417,88.396,0.63363337]
[1773457906950,0.60252649,88.416,88.396,0.63363337]
[1773457907849,103.4,88.417,88.39,3.82715739]
[1773457907850,75.24551578,88.417,88.415,0.64309135]
[1773457908064,0.64995483,88.439,88.41,3.62715739]
[1773457908234,0.64995483,88.437,88.41,3.62715739]
[1773457908856,0.64995483,88.437,88.42,3.62715739]
[1773457909156,12.41423873,88.438,88.42,3.62715739]
[1773457913160,13.06419356,88.438,88.42,3.62715739]
[1773457913361,0.64995483,88.437,88.42,3.62715739]
[1773457913541,11.30761228,88.436,88.42,3.62715739]
[1773457913742,0.64995483,88.435,88.42,3.62715739]
[1773457915262,0.64995483,88.435,88.41,3.62715739]
[1773457915646,0.64995483,88.435,88.41,3.62464148]
[1773457916968,0.64995483,88.433,88.41,3.62464148]
[1773457918642,0.64995483,88.433,88.411,11.31080974]
[1773457919947,0.64995483,88.433,88.397,39.59410386]
[1773457920149,0.64995483,88.433,88.41,3.62464148]
[1773457921444,0.64995483,88.433,88.411,11.31080974]
[1773457923860,0.64995483,88.431,88.41,3.62464148]
[1773457924065,0.64995483,88.431,88.39,0.2]
[1773457924066,0.64995483,88.429,88.39,3.82464148]
[1773457924866,0.64995483,88.429,88.4,3.62464148]
[1773457928683,0.64995483,88.429,88.411,11.31080974]
[1773457930078,12.41423873,88.438,88.42,3.62464148]
[1773457930281,13.06419356,88.438,88.42,3.62464148]
[1773457930583,0.64995483,88.437,88.42,3.62464148]
[1773457932276,12.41423873,88.438,88.42,3.62464148]
[1773457932662,12.41423873,88.438,88.421,11.30953054]
[1773457932864,0.64995483,88.443,88.421,11.30953054]
[1773457933585,0.64995483,88.458,88.43,3.62464148]
[1773457939884,0.64995483,88.455,88.43,3.62464148]
[1773457943292,0.64995483,88.455,88.43,3.62464148]
[1773457945891,0.64995483,88.452,88.43,3.62464148]
[1773457947500,0.64995483,88.452,88.44,3.62464148]
[1773457948694,12.41423873,88.454,88.44,3.62464148]
[1773457953700,0.64995483,88.453,88.44,3.62464148]
[1773457961886,12.41423873,88.454,88.44,3.62464148]
[1773457964010,11.30528094,88.455,88.44,3.62464148]
[1773457966805,0.64995483,88.458,88.44,3.62464148]
[1773457968503,0.64995483,88.458,88.44,14.93168097]
[1773457971706,0.6556771,88.456,88.422,11.30940263]
[1773457971906,0.6556771,88.456,88.43,3.62464148]
[1773457973711,0.6556771,88.454,88.42,3.62464148]
[1773457974011,0.6556771,88.449,88.414,7.2]
[1773457974517,0.6556771,88.449,88.414,18.51035854]
[1773457974812,0.6556771,88.447,88.42,3.62464148]